bitfinex/quotes_ETHUSD_20260107
["timestamp","ask_amount","ask_price","bid_price","bid_amount"]
[1767792094139,0.815,3220.0,3219.2,0.96617319]
[1767792094339,0.815,3220.0,3219.2,0.93510958]
[1767792095845,3.9206388,3220.0,3219.2,0.93510958]
[1767792096442,7.0262776,3220.0,3219.2,0.93510958]
[1767792096644,0.76829586,3219.9,3219.2,0.93510958]
[1767792097657,0.76829586,3219.9,3219.3,0.96617223]
[1767792097842,3.1054946,3220.1,3219.3,3.10621352]
[1767792098021,3.10543484,3220.2,3219.4,0.93510958]
[1767792098226,0.815,3220.1,3219.4,0.96617126]
[1767792099245,0.815,3220.0,3219.4,0.96617126]
[1767792099555,0.815,3219.9,3219.4,0.96617126]
[1767792099851,0.815,3219.9,3219.5,0.93510958]
[1767792100056,3.10520432,3220.4,3219.6,0.96616933]
[1767792100355,3.10520432,3220.4,3219.6,0.93510958]
[1767792100550,0.815,3220.3,3219.6,0.93510958]
[1767792100739,0.815,3220.3,3218.8,3.10671548]
[1767792100740,0.45494829,3220.2,3218.9,3.10664434]
[1767792100953,0.45494829,3220.2,3219.1,3.10639384]
[1767792101130,0.45494829,3220.2,3219.2,3.10633675]
[1767792101483,0.45494829,3220.2,3218.3,0.815]
[1767792101484,0.45494829,3220.2,3218.8,0.93510958]
[1767792101821,0.45494829,3220.0,3218.8,0.93510958]
[1767792102061,6.66632131,3219.9,3218.8,0.93510958]
[1767792102247,1.43214807,3219.8,3218.8,0.93510958]
[1767792102561,0.45494829,3219.7,3218.5,4.0421392]
[1767792102866,0.815,3219.6,3218.6,3.10694047]
[1767792103060,0.815,3219.6,3218.6,4.04205005]
[1767792103266,0.815,3219.6,3218.6,0.93510958]
[1767792103468,0.45494829,3219.5,3218.3,0.93510958]
[1767792103783,0.45494829,3219.5,3217.8,4.04282066]
[1767792104064,0.45494829,3219.3,3217.9,4.44695994]
[1767792104270,0.45494829,3219.3,3218.0,0.93510958]
[1767792105374,6.2123377,3219.4,3218.0,0.93510958]
[1767792105565,0.815,3219.2,3218.0,0.93510958]
[1767792106153,6.21291664,3219.1,3218.0,4.04257398]
[1767792106452,0.70279166,3219.0,3218.1,0.96618381]
[1767792106755,0.815,3218.9,3218.1,0.96618381]
[1767792106973,6.21279288,3219.2,3218.1,0.93510958]
[1767792107278,0.815,3218.8,3218.1,0.93510958]
[1767792108283,6.21279288,3219.2,3218.1,4.04248261]
[1767792108575,0.815,3219.1,3218.3,0.001]
[1767792108779,1.25263447,3219.1,3218.3,0.93610958]
[1767792109941,0.815,3219.0,3218.3,0.93610958]
[1767792111141,0.43763447,3219.1,3218.4,0.03107133]
[1767792111341,0.815,3219.0,3218.4,0.96618091]
[1767792111541,3.10618014,3219.4,3218.4,0.96618091]
[1767792111542,3.10799437,3219.6,3218.4,0.96618091]
[1767792111744,3.10799437,3219.6,3218.5,0.93510958]
[1767792111745,1.12579944,3219.5,3218.5,0.93510958]
[1767792112065,0.815,3219.4,3218.5,0.93510958]
[1767792113417,0.815,3219.4,3218.7,0.93510958]
[1767792113718,0.815,3219.3,3218.8,0.96617705]
[1767792114125,0.815,3219.2,3218.9,0.93510958]
[1767792114715,0.002,3219.6,3218.9,0.93510958]
[1767792114922,0.815,3219.3,3218.9,0.93510958]
[1767792119384,0.815,3219.3,3219.0,0.93510958]
[1767792120086,0.002,3219.6,3219.0,0.93510958]
[1767792120410,0.815,3219.5,3219.0,0.93510958]
[1767792121015,0.45494829,3219.3,3218.4,0.93510958]
[1767792121310,0.45494829,3219.3,3218.3,0.001]
[1767792121610,0.45494829,3219.3,3218.3,0.93610958]
[1767792121784,0.45494829,3219.3,3218.3,0.001]
[1767792121981,0.45494829,3219.1,3218.8,0.001]
[1767792122178,1.26994829,3219.0,3218.3,0.001]
[1767792123299,3.10665134,3218.9,3218.3,0.001]
[1767792123512,6.21330268,3218.9,3218.3,0.001]
[1767792123710,6.21330268,3218.9,3217.5,0.96057048]
[1767792123711,0.45494829,3218.8,3217.5,0.96057048]
[1767792124043,0.45494829,3218.8,3217.0,3.10946532]
[1767792124044,6.21330268,3218.9,3217.2,0.96057048]
[1767792124045,0.45494829,3218.6,3217.2,0.96057048]
[1767792124399,0.45494829,3218.6,3217.2,4.06886298]
[1767792124587,0.45494829,3218.6,3217.2,0.96057048]
[1767792125487,0.45494829,3218.4,3217.2,4.06884909]
[1767792125686,0.45494829,3218.4,3217.3,0.96057048]
[1767792126497,0.815,3218.3,3217.3,0.96057048]
[1767792127219,0.815,3218.2,3217.3,0.96057048]
[1767792128038,1.12177339,3218.7,3217.4,0.96616884]
[1767792128336,0.815,3218.7,3217.4,0.99724983]
[1767792128692,0.815,3218.6,3217.4,0.99724983]
[1767792128933,0.815,3218.5,3217.4,0.99724983]
[1767792129290,0.815,3218.5,3217.4,0.96616884]
[1767792129491,0.815,3218.5,3217.4,0.99724983]
[1767792129720,0.815,3218.4,3217.6,0.96616884]
[1767792130497,0.45494829,3219.4,3217.8,0.96616884]
[1767792130830,0.815,3219.3,3218.0,0.96616884]
[1767792131041,0.815,3219.3,3218.2,0.96616884]
[1767792131799,0.002,3219.6,3217.7,12.43123968]
[1767792131800,0.002,3219.6,3218.4,0.96616884]
[1767792132121,0.817,3219.6,3218.6,0.96616884]
[1767792132298,0.815,3219.5,3218.6,0.96616884]
[1767792132895,0.815,3219.5,3218.8,0.96616884]
[1767792133095,0.815,3219.5,3218.9,0.96616884]
[1767792133524,0.817,3219.6,3218.9,0.96616884]
[1767792134321,0.81299583,3219.5,3218.9,0.96616884]
[1767792134626,0.002,3219.3,3218.9,0.96616884]
[1767792135526,0.002,3219.3,3218.9,0.96416885]
[1767792135723,0.002,3219.3,3218.9,4.07081082]
[1767792136036,0.002,3219.3,3218.9,4.78856648]
[1767792137699,0.002,3219.3,3218.9,1.68192451]
[1767792138325,0.002,3219.3,3218.9,4.78855693]
[1767792138530,0.002,3219.3,3218.9,0.71775566]
[1767792138829,0.002,3219.3,3218.8,3.10674531]
[1767792139331,0.817,3219.3,3218.7,4.07301321]
[1767792140530,0.817,3219.3,3218.7,3.10684437]
[1767792140700,0.817,3219.3,3218.4,0.96616884]
[1767792141526,0.817,3219.3,3218.5,3.10702352]
[1767792141710,0.817,3219.3,3218.5,3.8250643]
[1767792141907,1.27394828,3219.3,3218.4,0.96616884]
[1767792142226,0.45694828,3219.2,3218.1,0.96616884]
[1767792142398,0.45694828,3219.2,3218.1,4.07356641]
[1767792143529,0.45694828,3219.1,3217.7,0.96616884]
[1767792143736,0.45694828,3219.0,3218.0,3.10747182]
[1767792144399,0.45694828,3219.0,3218.1,3.10741463]
[1767792145534,0.45694828,3219.0,3218.0,4.07365593]
[1767792147004,0.817,3219.3,3218.0,4.07365593]
[1767792147005,0.002,3219.3,3218.1,0.96616884]
[1767792147205,0.002,3219.3,3218.4,0.001]
[1767792147206,0.45694828,3219.1,3218.4,0.001]
[1767792147539,0.002,3218.9,3218.4,0.001]
[1767792149207,0.815,3218.8,3218.4,0.96716884]
[1767792150246,0.815,3218.8,3218.4,4.07429101]
[1767792150470,0.002,3218.9,3218.5,0.99723921]
[1767792152553,0.002,3218.9,3218.6,0.9430742]
[1767792153361,0.002,3218.9,3218.4,0.001]
[1767792153573,0.815,3218.8,3218.4,0.001]
[1767792157741,1.27194828,3218.8,3218.4,0.001]
[1767792158462,0.002,3218.9,3218.4,0.9440742]
[1767792158637,0.817,3218.9,3218.4,0.9440742]
[1767792158837,0.002,3218.9,3218.5,0.97414457]
[1767792159536,0.002,3218.9,3218.4,0.001]
[1767792159537,0.002,3218.9,3218.6,0.9430742]
[1767792161170,0.002,3218.9,3218.8,0.9430742]
[1767792161563,0.002,3218.9,3218.7,0.001]
[1767792162368,0.002,3218.9,3218.7,0.9440742]
[1767792162864,0.002,3219.2,3218.8,4.04982205]
[1767792163363,0.002,3219.2,3218.9,0.9430742]
[1767792164838,0.002,3219.2,3218.7,3.10778993]
[1767792164839,0.002,3219.2,3218.7,0.001]
[1767792167070,0.815,3219.1,3218.7,0.001]
[1767792168471,0.815,3219.0,3218.7,0.9440742]
[1767792168976,0.815,3219.0,3218.7,0.001]
[1767792171144,0.002,3219.2,3218.7,0.001]
[1767792171369,0.815,3219.1,3218.7,0.001]
[1767792173251,0.002,3219.2,3218.7,0.001]
[1767792173450,0.815,3219.1,3218.7,0.001]
[1767792175579,0.002,3219.2,3218.7,0.001]
[1767792175760,0.815,3219.1,3218.7,0.001]
[1767792176685,0.45694828,3219.0,3218.7,0.001]
[1767792178081,0.45694828,3219.0,3218.0,0.9430742]
[1767792178082,0.45694828,3219.0,3218.0,4.0505935]
[1767792178652,0.45694828,3219.0,3217.9,3.10754694]
[1767792179054,0.45694828,3219.0,3218.0,3.10750486]
[1767792179287,0.45694828,3219.0,3218.0,4.05057906]
[1767792179777,0.815,3218.9,3218.0,4.05057906]
[1767792180088,0.815,3218.9,3217.4,3.10806409]
[1767792180089,0.815,3218.9,3217.7,0.9430742]
[1767792180090,0.45694828,3218.8,3217.7,0.9430742]
[1767792180293,0.002,3219.2,3217.7,4.05088411]
[1767792180294,0.45694828,3218.6,3217.7,4.05088411]
[1767792180447,3.10837199,3219.2,3218.1,0.9430742]
[1767792180448,0.45694828,3218.9,3218.1,0.9430742]
[1767792180652,0.815,3218.8,3218.1,0.9430742]
[1767792180852,0.45894828,3219.2,3218.1,0.9430742]
[1767792181075,0.002,3219.2,3218.1,0.9430742]
[1767792181285,0.002,3219.2,3218.0,6.21503066]
[1767792181286,0.002,3219.2,3218.3,0.9430742]
[1767792181457,0.002,3219.2,3218.5,0.9430742]
[1767792181662,0.817,3219.2,3218.7,0.9430742]
[1767792181885,0.817,3219.2,3218.3,0.99254357]
[1767792182066,1.27394828,3219.2,3218.3,0.99254357]
[1767792182269,1.27394828,3219.2,3218.4,0.40997979]
[1767792182652,0.817,3219.2,3218.4,1.40252336]
[1767792182963,0.817,3219.2,3218.5,0.99254357]
[1767792183764,0.45694828,3219.1,3218.2,0.99254357]
[1767792184154,0.45694828,3219.1,3218.3,0.40999153]
[1767792184483,0.45694828,3219.1,3218.2,0.99254357]
[1767792185283,0.815,3219.0,3218.2,0.99254357]
[1767792186285,0.815,3219.0,3218.5,0.001]
[1767792187095,1.27194828,3219.0,3218.5,0.001]
[1767792187252,0.45694828,3218.9,3218.5,0.001]
[1767792187458,0.45594828,3218.7,3217.6,0.96372416]
[1767792187895,0.45594828,3218.7,3217.6,0.001]
[1767792188510,0.45594828,3218.6,3217.6,0.001]
[1767792189806,0.45594828,3218.4,3217.6,0.001]
[1767792190467,3.10687982,3218.7,3217.6,0.96372416]
[1767792190468,0.45594828,3218.7,3217.6,0.96372416]
[1767792190691,0.40005107,3218.7,3217.6,0.96372416]
[1767792190899,0.815,3218.6,3217.6,0.96372416]
[1767792191209,0.815,3218.8,3217.8,0.96272416]
[1767792191502,0.815,3218.8,3218.0,0.96272416]
[1767792192399,0.815,3218.8,3218.2,0.96272416]
[1767792192896,0.002,3219.2,3218.2,0.96272416]
[1767792193101,0.815,3218.8,3218.2,1.6804813]
[1767792193895,0.815,3218.8,3217.6,0.001]
[1767792193896,0.815,3218.8,3217.9,0.96272416]
[1767792194594,0.002,3219.2,3218.0,0.96272416]
[1767792194776,0.815,3219.1,3218.0,0.96272416]
[1767792196893,0.815,3219.1,3218.1,0.96272416]
[1767792198504,0.815,3219.1,3218.1,0.99379839]
[1767792198714,0.002,3218.8,3218.3,0.96272416]
[1767792200105,0.002,3218.8,3218.2,3.10730722]
[1767792201324,0.002,3218.8,3218.1,4.79109885]
[1767792202412,0.002,3218.8,3218.2,0.96272416]
[1767792204212,0.002,3218.8,3218.2,4.06996686]
[1767792204412,0.002,3218.8,3218.3,0.96272416]
[1767792206687,0.002,3218.8,3218.3,4.06993895]
[1767792207009,0.002,3218.8,3218.4,0.96272416]
[1767792208215,0.002,3218.8,3218.5,0.96272416]
[1767792209413,0.002,3219.1,3218.8,0.96272416]
[1767792210817,0.002,3219.1,3218.9,0.96272416]
[1767792211592,0.002,3219.1,3219.0,0.96272416]
[1767792211788,0.002,3219.1,3218.9,0.40694511]
[1767792211988,0.002,3219.1,3218.6,3.10692182]
[1767792212499,0.002,3219.1,3218.5,0.90205076]
[1767792212721,0.002,3219.1,3218.6,3.10692466]
[1767792212886,0.002,3219.1,3218.6,3.81853357]
[1767792215020,0.002,3219.1,3218.6,0.71160891]
[1767792215197,0.002,3219.1,3218.6,3.8185349]
[1767792216697,0.002,3219.1,3218.6,4.71958566]
[1767792220432,0.002,3219.1,3218.7,0.90105076]
[1767792221001,0.002,3219.3,3219.2,0.90105076]
[1767792221332,0.002,3220.1,3219.3,0.90105076]
[1767792222195,0.002,3220.1,3219.4,4.00721961]
[1767792222412,0.002,3220.1,3218.8,0.47195857]
[1767792222413,0.002,3220.1,3219.5,0.90105076]
[1767792223537,0.002,3220.1,3219.2,0.90105076]
[1767792224136,0.002,3220.1,3219.3,0.90105076]
[1767792224525,0.46394828,3220.1,3219.3,0.90105076]
[1767792225747,0.46394828,3220.1,3218.7,0.90105076]
[1767792225945,0.46194828,3219.9,3218.7,4.00787477]
[1767792226246,0.46194828,3219.9,3218.5,0.001]
[1767792226247,0.46194828,3219.9,3218.9,3.10665134]
[1767792226444,0.46194828,3219.9,3219.0,0.90105076]
[1767792226748,0.002,3220.1,3219.1,0.90105076]
[1767792226749,0.815,3220.0,3219.1,0.90105076]
[1767792226916,0.815,3220.0,3219.3,0.90105076]
[1767792228232,0.815,3220.0,3219.5,0.90105076]
[1767792228720,0.815,3220.0,3219.3,3.10621821]
[1767792228916,0.815,3220.0,3219.3,4.00726897]
[1767792229122,0.815,3220.0,3219.4,0.90105076]
[1767792229857,0.815,3220.0,3219.2,0.90105076]
[1767792229858,1.27694828,3220.0,3219.2,0.90105076]
[1767792230151,0.46194828,3219.9,3219.1,3.10644841]
[1767792230351,0.46194828,3219.9,3219.1,4.00749917]
[1767792230749,0.46194828,3219.9,3219.1,0.90105076]
[1767792230954,0.46194828,3219.9,3219.1,4.00750185]
[1767792231842,0.46194828,3219.9,3219.1,0.90105076]
[1767792232353,0.46194828,3219.9,3219.1,4.00750702]
[1767792232848,0.46194828,3219.9,3219.0,3.10651415]
[1767792233052,0.46194828,3219.9,3218.8,4.00774502]
[1767792233249,0.46194828,3219.9,3218.9,3.10663937]
[1767792233754,0.46194828,3219.9,3218.9,4.00769013]
[1767792235246,0.002,3220.1,3219.0,0.90105076]
[1767792235419,0.815,3219.8,3219.0,0.90105076]
[1767792235850,0.815,3219.8,3219.2,0.90105076]
[1767792236155,0.002,3219.6,3219.2,0.90105076]
[1767792238423,0.002,3219.6,3219.3,0.90105076]
[1767792239047,0.002,3219.6,3219.1,0.90205076]
[1767792241957,0.46394828,3219.6,3219.1,0.001]
[1767792245257,0.002,3219.6,3219.1,0.92915923]
[1767792249733,0.002,3219.6,3219.4,0.001]
[1767792252964,0.46394828,3219.6,3219.4,0.001]
[1767792254269,0.46194828,3219.4,3218.6,0.92815923]
[1767792254576,1.27694828,3219.3,3218.6,0.92815923]
[1767792254959,0.46194828,3219.2,3218.6,0.92815923]
[1767792256073,0.46194828,3219.2,3218.5,0.001]
[1767792256879,0.46194828,3219.2,3218.5,0.92915923]
[1767792258562,0.46194828,3219.2,3218.5,4.03618373]
[1767792260582,0.815,3219.3,3218.6,0.92815923]
[1767792262079,0.815,3219.3,3218.8,0.001]
[1767792265887,0.815,3219.3,3218.5,0.001]
[1767792265888,0.46194828,3219.2,3218.5,0.92915923]
[1767792267289,0.46194828,3219.2,3218.5,0.001]
[1767792267860,0.98907409,3219.2,3218.5,3.10802979]
[1767792268060,0.46194828,3219.2,3218.6,0.92815923]
[1767792268690,0.815,3219.3,3218.7,0.92815923]
[1767792274284,0.815,3219.3,3219.0,0.001]
[1767792278199,0.002,3219.6,3219.0,0.91064162]
[1767792279096,0.002,3219.6,3219.2,0.90964162]
[1767792279296,0.002,3219.6,3219.4,0.90964162]
[1767792279808,0.817,3219.9,3219.3,0.71225583]
[1767792279809,0.002,3219.9,3219.6,0.90964162]
[1767792281069,0.002,3219.9,3219.7,0.90964162]
[1767792283395,0.002,3219.9,3219.5,0.90964162]
[1767792283569,0.002,3219.9,3219.5,1.07183137]
[1767792284291,0.002,3219.9,3219.5,0.90964162]
[1767792286296,0.002,3219.6,3219.5,0.90964162]
[1767792288508,0.002,3219.6,3219.5,4.01571399]
[1767792288705,0.002,3219.9,3219.6,0.90964162]
[1767792289571,0.002,3219.9,3219.5,6.21214474]
[1767792289572,0.002,3220.1,3219.9,0.90964162]
[1767792289770,0.002,3220.1,3219.9,0.90764163]
[1767792290373,0.46394827,3220.8,3219.9,0.90764163]
[1767792290572,0.002,3220.9,3220.1,0.90964162]
[1767792290808,0.815,3220.8,3220.3,0.90964162]
[1767792290995,0.002,3220.9,3220.3,0.90964162]
[1767792292713,0.002,3220.9,3220.4,4.01484594]
[1767792293982,0.002,3220.9,3220.5,0.90964162]
[1767792294820,0.002,3220.9,3220.7,0.90964162]
[1767792295011,0.002,3220.9,3220.8,0.90964162]
[1767792295401,0.002,3221.2,3220.9,0.90964162]
[1767792295730,0.002,3221.2,3220.7,0.71196646]
[1767792295731,1.27894827,3222.0,3221.1,0.90964162]
[1767792296021,1.27894827,3222.0,3220.7,0.71196646]
[1767792296022,0.46394827,3221.9,3220.8,0.90964162]
[1767792297433,0.46394827,3221.9,3220.9,4.0143639]
[1767792298515,0.46594827,3221.6,3220.9,0.90964162]
[1767792299924,0.46594827,3221.6,3220.9,4.01435943]
[1767792300538,0.002,3221.6,3221.0,0.98354783]
[1767792301402,0.002,3221.6,3221.2,0.98354783]
[1767792301625,0.002,3221.9,3221.1,6.209059]
[1767792301626,0.002,3221.9,3221.6,0.98354783]
[1767792301802,0.002,3221.9,3221.6,0.97954785]
[1767792303002,0.002,3221.9,3221.2,0.90413124]
[1767792303506,0.002,3221.9,3221.4,0.90413124]
[1767792304346,0.002,3221.9,3221.4,1.30497804]
[1767792304650,0.21,3223.4,3221.6,0.90413124]
[1767792304651,1.28494825,3223.1,3221.6,0.90413124]
[1767792304859,0.46994825,3223.0,3221.6,0.90413124]
[1767792305540,0.46994825,3222.8,3221.7,4.00808257]
[1767792305747,0.46994825,3222.6,3221.8,0.90413124]
[1767792307047,0.46994825,3222.8,3221.8,0.90413124]
[1767792307743,0.46994825,3222.8,3221.8,4.00796885]
[1767792308115,0.46994825,3222.8,3221.9,0.90413124]
[1767792309518,0.815,3223.0,3221.9,0.90413124]
[1767792309853,1.28494825,3223.0,3222.1,0.90413124]
[1767792310412,1.28494825,3223.0,3221.8,0.90413124]
[1767792310413,0.46994825,3222.8,3221.8,0.90413124]
[1767792310717,0.43875691,3222.9,3221.4,0.4008468]
[1767792310718,0.43875691,3222.9,3222.0,0.90413124]
[1767792311042,1.28494825,3223.0,3222.0,0.90413124]
[1767792311350,0.46994825,3222.9,3222.0,0.90413124]
[1767792311551,0.002,3222.5,3222.0,0.90413124]
[1767792311715,0.002,3222.5,3222.1,0.90413124]
[1767792313060,0.002,3222.5,3222.1,0.90213125]
[1767792313259,0.002,3222.5,3221.9,0.90413124]
[1767792313829,0.47394824,3222.5,3221.7,0.90513124]
[1767792316131,0.47394824,3222.5,3221.7,0.001]
[1767792316345,0.35770443,3222.4,3221.7,0.001]
[1767792316551,0.35770443,3222.4,3221.3,3.10430549]
[1767792316552,0.35770443,3222.4,3221.3,0.90413124]
[1767792316553,0.47194824,3222.3,3221.3,0.90413124]
[1767792317059,0.47194824,3222.3,3221.3,4.00842738]
[1767792317730,0.47194824,3222.3,3220.7,0.815]
[1767792317731,0.47194824,3222.3,3221.4,0.90413124]
[1767792317941,0.002,3222.5,3221.7,0.90413124]
[1767792318250,0.002,3222.5,3221.8,0.90413124]
[1767792318766,0.002,3222.5,3221.8,0.93516978]
[1767792318951,0.002,3222.5,3221.8,0.90413124]
[1767792319143,0.002,3222.5,3221.9,0.90413124]
[1767792320269,0.002,3222.5,3221.9,4.00785647]
[1767792320469,0.002,3222.5,3221.9,0.90413124]
[1767792320669,0.002,3222.5,3221.6,4.00813119]
[1767792320967,0.002,3222.5,3221.7,3.10393858]
[1767792321386,0.002,3222.5,3221.8,4.00790462]
[1767792321588,0.002,3222.5,3221.8,4.00797214]
[1767792322690,0.002,3222.5,3221.9,0.90413124]
[1767792322865,0.002,3222.5,3222.0,0.90413124]
[1767792324188,0.002,3222.5,3222.2,0.90413124]
[1767792330777,0.002,3222.5,3222.3,0.90413124]
[1767792331305,0.002,3222.8,3222.5,0.90413124]
[1767792332116,0.002,3222.8,3222.0,4.01775894]
[1767792332117,0.47394824,3222.8,3222.0,4.01775894]
[1767792332321,0.47394824,3222.8,3222.2,0.91415351]
[1767792332322,0.002,3222.8,3222.2,0.91415351]
[1767792332476,0.002,3222.8,3222.2,4.01759687]
[1767792332680,0.002,3222.8,3222.3,0.91415351]
[1767792336625,0.002,3222.5,3222.3,0.91415351]
[1767792337029,0.002,3222.5,3222.4,0.91415351]
[1767792337652,0.002,3222.8,3222.5,0.91415351]
[1767792339779,0.002,3222.8,3222.4,0.40175245]
[1767792340085,0.002,3222.8,3222.1,0.91415351]
[1767792340379,0.002,3222.8,3222.2,0.91415351]
[1767792341282,0.002,3222.8,3222.3,0.91415351]
[1767792343586,0.002,3222.8,3222.3,4.01750885]
[1767792343779,0.002,3222.8,3222.3,0.91415351]
[1767792343984,0.002,3222.8,3222.3,1.31592163]
[1767792344457,0.002,3222.8,3222.4,0.91415351]
[1767792345059,0.002,3222.8,3222.4,0.94518628]
[1767792345252,0.002,3222.8,3222.4,0.91415351]
[1767792345979,0.002,3222.8,3222.4,4.01737333]
[1767792346184,0.002,3222.8,3222.6,0.91415351]
[1767792347484,0.002,3222.8,3222.5,0.75225121]
[1767792347652,0.002,3222.8,3222.2,4.01761231]
[1767792348083,0.002,3222.8,3222.3,0.91415351]
[1767792348586,0.002,3222.5,3222.3,0.91415351]
[1767792353069,0.002,3222.5,3221.7,0.91415351]
[1767792353070,0.56830953,3222.5,3221.7,0.91415351]
[1767792353279,0.56830953,3222.5,3221.7,4.01805539]
[1767792353488,0.56630953,3222.4,3221.7,0.91415351]
[1767792353671,0.56630953,3222.4,3221.7,4.01810165]
[1767792354064,0.56630953,3222.4,3221.8,0.91415351]
[1767792355893,0.56630953,3222.4,3221.8,4.01798348]
[1767792356063,0.002,3222.5,3221.8,4.73017846]
[1767792356260,0.002,3222.5,3221.9,0.91415351]
[1767792357171,0.002,3222.5,3222.0,4.01781583]
[1767792357380,0.002,3222.5,3222.0,0.91415351]
[1767792358397,0.56830953,3222.5,3221.7,0.91415351]
[1767792358903,0.56830953,3222.5,3221.8,4.01799477]
[1767792359105,0.56830953,3222.5,3221.8,4.73019727]
[1767792359581,0.56830953,3222.5,3221.8,1.62635601]
[1767792359779,0.56830953,3222.5,3221.8,0.91415351]
[1767792360183,0.56830953,3222.5,3222.2,0.001]
[1767792360382,0.56830953,3222.5,3221.8,0.91415351]
[1767792360591,0.56830953,3222.5,3221.7,0.99592507]
[1767792361001,0.002,3222.5,3221.9,0.99592507]
[1767792361203,0.002,3222.8,3222.3,0.99592507]
[1767792361402,0.002,3222.8,3221.9,0.72036952]
[1767792361403,0.56630953,3223.6,3222.6,0.99592507]
[1767792361603,0.56630953,3223.5,3222.6,4.09899631]
[1767792361807,0.56630953,3223.4,3222.6,4.09899631]
[1767792361972,0.56630953,3223.4,3222.6,0.99592507]
[1767792362309,0.56630953,3223.3,3222.6,0.99592507]
[1767792364097,0.56630953,3223.3,3222.6,4.09900566]
[1767792365382,0.56630953,3223.3,3222.6,0.99592507]
[1767792366092,0.56630953,3223.3,3222.6,4.09900778]
[1767792366707,0.56630953,3223.3,3222.6,7.20209224]
[1767792366906,0.56630953,3223.3,3222.6,4.09900778]
[1767792368083,0.56630953,3223.3,3222.6,0.99592507]
[1767792368579,0.56630953,3223.3,3222.6,4.0990006]
[1767792369412,0.56830953,3223.2,3222.6,0.99592507]
[1767792369627,0.56830953,3223.2,3222.4,3.10322154]
[1767792369785,0.56830953,3223.2,3222.4,3.81981209]
[1767792369984,0.56830953,3223.2,3222.4,0.71659055]
[1767792370209,0.56830953,3223.2,3222.1,3.10348721]
[1767792370210,0.56630953,3223.1,3222.1,0.95932561]
[1767792370587,0.56630953,3223.1,3222.2,3.10337387]
[1767792371290,0.56630953,3223.1,3222.3,3.1033687]
[1767792371590,0.56630953,3223.1,3222.3,3.10335273]
[1767792371819,0.56630953,3223.0,3222.3,3.10335273]
[1767792372027,0.002,3222.9,3222.3,3.10335273]
[1767792372229,0.002,3222.9,3222.3,7.1660517]
[1767792372420,0.002,3222.9,3222.4,0.95932561]
[1767792374540,0.002,3222.9,3221.2,3.85]
[1767792374541,0.002,3222.9,3222.5,0.95932561]
[1767792374742,0.56830953,3222.9,3222.4,3.10325238]
[1767792374957,0.002,3222.9,3222.5,0.95932561]
[1767792376127,0.002,3222.9,3222.4,3.81984933]
[1767792376305,0.002,3223.2,3223.0,0.95932561]
[1767792376824,0.002,3223.2,3222.9,0.00147382]
[1767792379638,0.002,3223.2,3222.9,0.96079943]
[1767792381139,0.49304983,3223.7,3222.9,0.96079943]
[1767792381140,0.002,3223.8,3223.2,0.95932561]
[1767792381339,0.002,3224.1,3223.2,0.95932561]
[1767792381857,0.002,3224.1,3223.4,0.95932561]
[1767792382663,0.49504983,3224.1,3223.1,0.95932561]
[1767792382842,0.49304983,3224.0,3223.1,0.95932561]
[1767792383029,0.49304983,3224.0,3222.9,3.10426943]
[1767792383030,0.85271929,3224.0,3223.2,0.95932561]
[1767792383231,0.49304983,3224.0,3223.2,0.95932561]
[1767792383432,0.002,3224.1,3223.2,0.95932561]
[1767792383759,0.00052618,3224.1,3223.2,0.95932561]
[1767792383962,0.00052618,3224.1,3223.3,0.95932561]
[1767792384258,0.00052618,3224.1,3223.2,4.80113545]
[1767792384259,0.002,3224.5,3224.0,0.95932561]
[1767792384654,0.002,3224.5,3223.1,9.30779089]
[1767792384655,0.49304983,3225.4,3224.3,0.95932561]
[1767792384828,3.59349571,3225.4,3224.3,0.95932561]
[1767792385034,0.44074957,3225.3,3224.3,0.95932561]
[1767792385982,0.49304983,3225.2,3224.3,0.95932561]
[1767792386281,0.44074957,3225.3,3223.7,0.95932561]
[1767792386282,0.49304983,3224.9,3223.7,0.95932561]
[1767792386428,0.49304983,3224.8,3223.7,0.95932561]
[1767792386753,0.49304983,3224.6,3223.7,0.95932561]
[1767792386947,0.49304983,3224.5,3223.7,0.95932561]
[1767792389464,3.59440201,3224.4,3223.7,0.95932561]
[1767792389970,0.57030953,3224.3,3223.2,0.95932561]
[1767792390266,6.20270436,3224.4,3223.3,0.95932561]
[1767792390267,1.24761092,3224.2,3223.3,0.95932561]
[1767792390844,0.67730139,3224.2,3223.3,0.95932561]
[1767792391439,0.67730139,3224.2,3223.4,0.95932561]
[1767792393150,3.10107476,3224.7,3223.6,0.95449651]
[1767792393351,3.91515983,3224.6,3223.6,0.95449651]
[1767792393558,3.10097936,3224.8,3223.7,0.95449651]
[1767792393868,3.10097936,3224.8,3223.7,0.98551676]
[1767792394078,1.38430953,3224.9,3223.7,0.98551676]
[1767792394258,0.44851223,3224.9,3223.9,0.95449651]
[1767792394996,0.57030953,3225.1,3223.9,0.95449651]
[1767792395300,0.814,3225.2,3223.9,0.95449651]
[1767792395498,3.10055351,3225.3,3224.1,0.95449651]
[1767792395715,3.91455351,3225.3,3224.1,0.95449651]
[1767792395873,0.57030953,3225.2,3224.1,0.95449651]
[1767792396196,0.57030953,3225.0,3224.1,0.95449651]
[1767792396578,0.002,3224.6,3224.1,0.95449651]
[1767792399201,0.002,3224.6,3224.2,0.95449651]
[1767792399802,0.002,3224.6,3224.3,0.95449651]
[1767792400990,0.002,3224.6,3224.0,0.95449651]
[1767792401190,0.002,3224.6,3224.0,4.0562271]
[1767792401512,0.002,3224.6,3224.3,0.95449651]
[1767792401886,0.002,3224.6,3224.3,0.94870498]
[1767792405897,0.002,3224.6,3223.7,0.814]
[1767792406102,0.002,3224.6,3224.0,0.95449651]
[1767792406306,0.002,3224.6,3224.1,0.95449651]
[1767792407093,0.002,3224.6,3224.2,0.95449651]
[1767792408293,0.002,3224.6,3224.4,0.95449651]
[1767792409494,0.002,3224.6,3224.4,4.05582946]
[1767792409693,0.002,3224.6,3224.5,0.95449651]
[1767792409931,0.002,3224.6,3224.3,0.71577715]
[1767792409932,0.002,3224.9,3224.6,0.95449651]